bitfinex-derivatives/quotes_ETHF0:USTF0_20260117
["timestamp","ask_amount","ask_price","bid_price","bid_amount"]
[1768656904325,0.98114799,3304.2,3303.2,0.00354509]
[1768656904517,0.98114799,3304.2,3303.2,4.83754509]
[1768656905210,0.98114799,3304.2,3303.2,0.00354509]
[1768656906721,1.12120304,3304.2,3303.2,0.00354509]
[1768656906923,0.97755719,3304.0,3303.2,0.00354509]
[1768656907126,0.14364585,3304.2,3303.2,0.00354509]
[1768656907317,1.12120304,3304.2,3303.2,0.00354509]
[1768656910022,0.14005505,3304.1,3303.2,0.00354509]
[1768656910222,0.14005505,3304.0,3303.2,0.00354509]
[1768656917434,1.11761224,3304.0,3303.2,0.00354509]
[1768656917633,1.11761224,3303.8,3303.2,0.00354509]
[1768656917933,1.11761224,3303.8,3302.7,4.842]
[1768656918731,1.11761224,3303.8,3302.7,4.8449951]
[1768656919534,0.14005505,3303.8,3302.7,5.82255229]
[1768656923038,0.14005505,3303.8,3302.7,0.98055229]
[1768656923238,0.14005505,3303.8,3302.7,5.82755229]
[1768656924839,0.14005505,3303.8,3302.7,5.82955229]
[1768656927943,0.14005505,3303.8,3302.7,0.0029951]
[1768656928146,0.14005505,3303.8,3302.7,4.8549951]
[1768656928746,0.14005505,3303.8,3302.7,0.0029951]
[1768656929043,0.14005505,3303.8,3302.7,4.8559951]
[1768656933358,0.14005505,3303.8,3302.7,0.0029951]
[1768656933559,0.14005505,3303.8,3302.7,4.8609951]
[1768656933760,0.14005505,3303.8,3302.7,0.0029951]
[1768656936665,0.13437688,3303.6,3302.7,0.0029951]
[1768656960291,0.13463823,3304.1,3302.7,0.0029951]
[1768656960482,0.13463823,3304.1,3302.7,0.98130709]
[1768656961276,0.13463823,3304.1,3302.7,0.0029951]
[1768656961886,0.13463823,3304.1,3302.8,40.8]
[1768656962482,0.13463823,3304.1,3302.7,0.0029951]
[1768656965995,5.16063823,3304.1,3302.7,0.0029951]
[1768656967098,0.13463823,3304.0,3302.7,0.0029951]
[1768656989314,0.13463823,3304.0,3302.7,0.98135761]
[1768656998720,0.97836251,3303.5,3302.7,0.0029951]
[1768656998916,1.11118444,3303.5,3302.7,0.0029951]
[1768656999522,0.13282193,3303.5,3302.7,0.0029951]
[1768657018434,0.13282193,3303.5,3302.7,0.98135761]
[1768657024947,0.13282193,3303.5,3302.7,0.0029951]
[1768657025256,0.13282193,3303.5,3302.7,0.98135761]
[1768657025645,0.13282193,3303.5,3302.7,0.0029951]
[1768657035360,1.1151886,3303.3,3302.7,0.0029951]
[1768657035564,1.1151886,3303.3,3302.5,0.1]
[1768657035565,0.13682609,3303.2,3302.5,0.09352943]
[1768657035761,1.1151886,3302.9,3301.6,0.15149]
[1768657035976,0.13682609,3302.8,3301.7,40.8]
[1768657036468,0.13682609,3302.8,3301.7,40.80299507]
[1768657037868,0.13682609,3302.8,3301.7,41.78135758]
[1768657039164,0.13682609,3302.7,3301.7,40.80299507]
[1768657040070,0.13682609,3302.7,3301.7,0.00299507]
[1768657044473,0.13682609,3302.7,3301.7,0.98135758]
[1768657046967,0.13682609,3302.7,3301.7,5.87635758]
[1768657049275,0.13682609,3302.7,3301.7,4.89799507]
[1768657052078,0.13682609,3302.7,3301.7,0.00299507]
[1768657052281,0.13682609,3302.7,3301.8,4.904]
[1768657054283,0.13280585,3303.3,3301.8,4.904]
[1768657055781,0.13280585,3303.3,3301.7,0.00299507]
[1768657063894,0.13280585,3303.3,3301.7,4.92099507]
[1768657065087,0.9671821,3303.2,3301.7,4.92099507]
[1768657065294,0.13280585,3303.1,3301.7,4.92099507]
[1768657067499,1.11181455,3303.1,3301.7,4.92099507]
[1768657067687,0.13280585,3303.0,3301.7,4.92099507]
[1768657071501,0.13280585,3303.0,3301.7,0.00299507]
[1768657104538,0.13669605,3302.8,3301.7,0.00299507]
[1768657111346,0.97919091,3302.6,3301.7,0.00299507]
[1768657112147,1.11588696,3302.8,3301.7,0.00299507]
[1768657112349,0.14014812,3303.3,3301.8,0.97919091]
[1768657112546,1.24727496,3303.2,3301.8,0.97919091]
[1768657112741,2.3666173,3303.1,3301.7,0.00299507]
[1768657113043,0.97919091,3302.9,3301.7,0.00299507]
[1768657113744,1.11933903,3302.9,3301.7,0.00299507]
[1768657114348,0.97919091,3302.7,3301.7,0.00299507]
[1768657114749,0.14014812,3302.9,3301.7,0.00299507]
[1768657115046,0.97919091,3302.7,3301.7,0.00299507]
[1768657122255,1.11933903,3302.7,3301.7,0.00299507]
[1768657125262,0.14014812,3302.6,3301.7,0.00299507]
[1768657128062,0.14014812,3302.4,3301.7,0.00299507]
[1768657132270,0.13098177,3302.9,3301.7,0.00299507]
[1768657132469,0.97919091,3302.7,3301.7,0.00299507]
[1768657138371,0.13098177,3302.9,3301.7,0.98218598]
[1768657138568,1.11017268,3302.9,3301.7,0.00299507]
[1768657139271,0.13098177,3302.9,3301.7,0.00299507]
[1768657142274,0.97919091,3302.7,3301.7,0.00299507]
[1768657142471,1.11017268,3302.9,3301.7,0.00299507]
[1768657142664,0.13098177,3302.8,3301.7,0.00299507]
[1768657146574,0.13098177,3303.2,3301.9,0.97919091]
[1768657146768,0.13098177,3303.2,3302.3,0.97919091]
[1768657146967,0.13098177,3303.2,3301.7,0.00299507]
[1768657146968,0.13098177,3303.2,3302.1,0.97919091]
[1768657149277,0.13098177,3303.2,3301.9,0.97919091]
[1768657150076,1.11017268,3303.2,3301.9,0.97919091]
[1768657150269,0.13098177,3303.1,3301.7,0.98218598]
[1768657154977,0.13098177,3302.9,3301.7,0.00299507]
[1768657156791,0.13098177,3302.9,3301.8,0.97919091]
[1768657157792,0.13098177,3303.3,3301.8,0.97919091]
[1768657157984,1.11017268,3303.3,3301.8,0.97919091]
[1768657158185,1.11017268,3303.3,3302.0,0.97919091]
[1768657158379,0.13098177,3303.2,3302.0,0.97919091]
[1768657165198,0.1442495,3303.6,3302.6,0.97919091]
[1768657168297,0.1442495,3303.6,3302.4,0.97919091]
[1768657168898,0.1442495,3303.6,3302.5,40.8]
[1768657171405,0.1442495,3303.6,3302.4,0.97919091]
[1768657171903,0.1442495,3303.6,3302.4,41.77919091]
[1768657173305,0.14016491,3304.1,3302.4,40.8]
[1768657173508,1.246558,3304.0,3302.4,40.8]
[1768657173700,1.246558,3303.9,3302.4,40.8]
[1768657173900,0.967769,3303.8,3302.4,40.8]
[1768657174104,0.14016491,3303.9,3302.4,40.8]
[1768657174306,0.96777225,3303.8,3302.4,40.8]
[1768657174505,0.14016491,3303.9,3302.4,40.8]
[1768657174706,0.96769163,3303.8,3302.4,40.8]
[1768657175004,0.14016491,3303.9,3302.4,40.8]
[1768657175304,0.96768971,3303.8,3302.4,40.8]
[1768657175499,0.14016491,3303.9,3302.4,40.8]
[1768657175699,0.96769388,3303.8,3302.4,40.8]
[1768657175900,0.14016491,3303.9,3302.4,40.8]
[1768657176116,0.96064891,3303.8,3302.4,40.8]
[1768657176402,0.14016491,3303.9,3302.4,40.8]
[1768657176606,0.14016491,3303.7,3302.4,40.8]
[1768657176802,0.14016491,3303.7,3301.9,0.28895974]
[1768657177002,0.14016491,3303.7,3302.0,0.13748974]
[1768657177407,0.14016491,3303.7,3302.1,40.8]
[1768657180703,0.14016491,3303.7,3302.2,4.914]
[1768657182806,0.14016491,3303.7,3302.3,40.8]
[1768657183011,0.14016491,3304.1,3302.4,0.13748974]
[1768657183210,1.23938591,3304.0,3302.4,0.13748974]
[1768657183405,1.23938591,3303.9,3302.4,0.13748974]
[1768657183612,0.14016491,3304.1,3302.4,0.13748974]
[1768657183801,1.23946616,3304.0,3302.4,0.13748974]
[1768657184005,0.14016491,3304.1,3302.4,0.13748974]
[1768657184205,1.23946961,3304.0,3302.4,0.13748974]
[1768657184410,0.14016491,3304.1,3302.4,0.13748974]
[1768657184610,1.23947841,3304.0,3302.4,0.13748974]
[1768657184810,0.14016491,3304.1,3302.4,0.13748974]
[1768657185009,1.23947658,3304.0,3302.4,0.13748974]
[1768657185308,0.14016491,3304.1,3302.4,0.13748974]
[1768657185615,1.23947158,3304.0,3302.4,0.13748974]
[1768657185816,0.14016491,3304.1,3302.4,0.13748974]
[1768657186006,1.23947146,3304.0,3302.4,0.13748974]
[1768657186202,0.14016491,3304.1,3302.4,0.13748974]
[1768657186414,1.23949123,3304.0,3302.4,0.13748974]
[1768657186616,0.14016491,3304.1,3302.4,0.13748974]
[1768657186813,1.23949119,3304.0,3302.4,0.13748974]
[1768657187114,0.14016491,3304.1,3302.4,0.13748974]
[1768657187313,1.2394989,3304.0,3302.4,0.13748974]
[1768657187501,0.14016491,3304.1,3302.4,0.13748974]
[1768657187707,1.23952647,3304.0,3302.4,0.13748974]
[1768657187908,0.14016491,3304.1,3302.4,0.13748974]
[1768657188206,1.23952687,3304.0,3302.4,0.13748974]
[1768657188405,0.14016491,3304.1,3302.4,0.13748974]
[1768657188406,0.14016491,3304.1,3302.5,40.8]
[1768657188606,1.23958236,3304.0,3302.5,40.8]
[1768657188815,0.14016491,3304.1,3302.6,1.11597933]
[1768657190019,0.1549608,3304.2,3302.7,0.13748974]
[1768657192720,0.0035908,3304.2,3302.7,0.13748974]
[1768657193822,0.0035908,3304.2,3302.8,40.8]
[1768657197425,0.0035908,3304.2,3302.8,45.725]
[1768657197827,0.0035908,3304.2,3302.8,45.86303616]
[1768657201125,0.0035908,3304.2,3302.9,0.13803616]
[1768657210032,0.0035908,3304.2,3303.1,0.13803616]
[1768657210226,0.13459332,3304.9,3303.1,0.13803616]
[1768657210421,1.23649148,3304.8,3303.1,0.13803616]
[1768657210626,0.13459332,3304.9,3303.1,0.13803616]
[1768657210828,0.95777534,3304.8,3303.1,0.13803616]
[1768657211029,0.13459332,3304.9,3303.1,0.13803616]
[1768657211230,0.13716078,3304.9,3303.1,0.13803616]
[1768657212129,0.13716078,3304.9,3303.0,1.12991959]
[1768657212130,0.13716078,3304.9,3303.4,1.11652575]
[1768657212337,0.13716078,3304.9,3303.4,6.05452575]
[1768657217553,0.00256746,3304.9,3303.5,0.13803616]
[1768657221451,0.13716078,3304.9,3303.1,0.28945616]
[1768657221650,0.13716078,3304.9,3303.1,5.21745616]
[1768657221852,1.11419388,3304.7,3303.1,5.21745616]
[1768657226871,0.13570429,3304.7,3303.1,5.21745616]
[1768657227965,0.00256746,3304.9,3303.2,0.13046242]
[1768657228169,0.00256746,3304.9,3303.3,0.13046242]
[1768657233369,0.00256746,3304.9,3303.6,0.97782563]
[1768657234570,0.97782563,3304.8,3303.4,0.97782563]
[1768657237470,0.00256746,3304.9,3303.4,0.97782563]
[1768657237670,0.00256746,3304.9,3303.8,0.97782563]
[1768657238472,0.00256746,3304.9,3303.6,0.97782563]
[1768657239177,0.98039309,3304.9,3303.3,0.13046242]
[1768657239374,0.97782563,3304.7,3303.4,0.97782563]
[1768657244280,0.97782563,3304.7,3303.4,5.92182563]
[1768657248785,0.00256746,3304.9,3303.4,5.92182563]
[1768657248983,0.98039309,3304.9,3303.4,5.92182563]
[1768657251077,0.97782563,3304.1,3302.9,0.13771182]
[1768657251282,0.97782563,3303.9,3302.9,5.08471182]
[1768657251585,0.97782563,3303.9,3302.9,0.13771182]
[1768657251886,0.97782563,3304.0,3302.9,0.13771182]
[1768657253082,0.97782563,3304.0,3302.8,45.748]
[1768657253280,0.97782563,3304.0,3302.8,40.8]
[1768657253578,0.97782563,3304.0,3302.9,4.95]
[1768657254385,0.97782563,3304.0,3302.8,40.8]
[1768657254584,0.97782563,3304.0,3302.9,4.952]
[1768657254784,0.97782563,3304.0,3303.0,4.953]
[1768657255486,0.97782563,3304.0,3302.8,40.8]
[1768657255678,0.97782563,3304.0,3302.9,4.954]
[1768657256483,0.97782563,3304.0,3302.8,40.8]
[1768657256677,0.97782563,3304.0,3302.9,4.957]
[1768657268196,0.97782563,3304.0,3302.8,0.97782563]
[1768657268393,0.97782563,3304.0,3302.9,4.98]
[1768657273909,0.97782563,3304.2,3303.0,0.97782563]
[1768657274095,0.97782563,3304.4,3303.0,0.97782563]
[1768657274300,0.97782563,3304.4,3303.0,1.10999544]
[1768657274907,0.97782563,3304.4,3303.0,41.90999544]
[1768657277810,0.97782563,3304.1,3303.0,40.93216981]
[1768657278008,0.97782563,3304.1,3302.9,4.98]
[1768657284714,0.97782563,3303.9,3302.9,4.98]
[1768657292727,0.97782563,3304.1,3302.9,4.98]
[1768657294023,0.14355998,3304.4,3302.9,4.98]
[1768657294227,0.97782563,3304.3,3303.0,0.97782563]
[1768657294828,0.97782563,3304.3,3302.9,5.12368216]
[1768657295019,0.97782563,3304.3,3302.9,6.10150779]
[1768657295514,0.14355998,3304.4,3302.9,5.12368216]
[1768657315839,1.1295949,3304.7,3303.0,0.13181834]
[1768657316036,1.24298252,3304.6,3303.0,0.13181834]
[1768657316241,1.24298252,3304.5,3303.0,0.13181834]
[1768657316540,0.96362499,3304.4,3303.0,0.13181834]
[1768657316740,0.13978937,3304.6,3303.0,0.13181834]
[1768657316943,1.24298456,3304.5,3303.0,0.13181834]
[1768657317132,0.96362645,3304.4,3303.0,0.13181834]
[1768657317329,0.13978937,3304.6,3303.0,0.13181834]
[1768657317533,1.24298847,3304.5,3303.0,0.13181834]
[1768657317733,0.96362983,3304.4,3303.0,0.13181834]
[1768657317937,0.13978937,3304.6,3303.0,0.13181834]
[1768657318145,1.24298887,3304.5,3303.0,0.13181834]
[1768657318338,0.9636298,3304.4,3303.0,0.13181834]
[1768657318536,0.13978937,3304.6,3303.0,0.13181834]
[1768657318736,1.24299118,3304.5,3303.0,0.13181834]
[1768657319036,0.96363159,3304.4,3303.0,0.13181834]
[1768657319241,0.13978937,3304.6,3303.0,0.13181834]
[1768657319442,1.2429883,3304.5,3303.0,0.13181834]
[1768657319643,0.96362934,3304.4,3303.0,0.13181834]
[1768657319943,0.13978937,3304.6,3303.0,0.13181834]
[1768657320145,1.24298967,3304.5,3303.0,0.13181834]
[1768657320343,0.9636304,3304.4,3303.0,0.13181834]
[1768657320646,0.13978937,3304.6,3303.0,0.13181834]
[1768657320844,1.24299385,3304.5,3303.0,0.13181834]
[1768657321045,0.96363364,3304.4,3303.0,0.13181834]
[1768657321244,0.13978937,3304.6,3303.0,0.13181834]
[1768657321440,1.24299874,3304.5,3303.0,0.13181834]
[1768657321643,0.96363742,3304.4,3303.0,0.13181834]
[1768657321938,0.13978937,3304.6,3303.0,0.13181834]
[1768657322135,1.24298845,3304.5,3303.0,0.13181834]
[1768657322339,0.96362944,3304.4,3303.0,0.13181834]
[1768657322649,0.13978937,3304.6,3303.0,0.13181834]
[1768657322851,1.24299644,3304.5,3303.0,0.13181834]
[1768657323048,0.96363564,3304.4,3303.0,0.13181834]
[1768657323248,0.13978937,3304.6,3303.0,0.13181834]
[1768657323547,1.24300089,3304.5,3303.0,0.13181834]
[1768657323747,0.96363919,3304.4,3303.0,0.13181834]
[1768657323947,0.13978937,3304.6,3303.0,0.13181834]
[1768657324147,1.24300114,3304.5,3303.0,0.13181834]
[1768657324451,0.96363925,3304.4,3303.0,0.13181834]
[1768657324747,0.13978937,3304.6,3303.0,0.13181834]
[1768657324949,1.24299492,3304.5,3303.0,0.13181834]
[1768657325249,0.13978937,3304.6,3303.0,0.13181834]
[1768657325449,1.24294875,3304.5,3303.0,0.13181834]
[1768657325649,0.13978937,3304.6,3303.0,0.13181834]
[1768657325850,1.2429476,3304.5,3303.0,0.13181834]
[1768657326043,0.13978937,3304.6,3303.0,0.13181834]
[1768657326238,1.2414262,3304.5,3303.0,0.13181834]
[1768657326452,0.13978937,3304.6,3303.0,0.13181834]
[1768657326653,1.2414204,3304.5,3303.0,0.13181834]
[1768657326956,0.13978937,3304.6,3303.0,0.13181834]
[1768657327155,1.38120973,3304.5,3303.0,0.13181834]
[1768657327451,0.13978937,3304.5,3303.0,0.13181834]
[1768657336263,0.14235683,3304.9,3303.0,0.13181834]
[1768657336466,1.2413341,3304.8,3303.0,0.13181834]
[1768657336665,0.96203766,3304.7,3303.0,0.13181834]
[1768657336961,0.14235683,3304.9,3303.0,0.13181834]
[1768657337162,1.23368771,3304.8,3303.0,0.13181834]
[1768657337463,0.962038,3304.7,3303.0,0.13181834]
[1768657337657,0.14235683,3304.9,3303.1,0.13181834]
[1768657337858,0.9618524,3304.8,3303.1,0.13181834]
[1768657338055,0.14235683,3304.9,3303.1,0.13181834]
[1768657338256,0.96169437,3304.8,3303.1,0.13181834]
[1768657338455,0.14235683,3304.9,3303.1,0.13181834]
[1768657338763,0.96168852,3304.8,3303.1,0.13181834]
[1768657338963,0.14235683,3304.9,3303.1,0.13181834]
[1768657339156,0.96168849,3304.8,3303.1,0.13181834]
[1768657339358,0.14235683,3304.9,3303.1,0.13181834]
[1768657339558,0.96157524,3304.8,3303.1,0.13181834]
[1768657339755,0.14235683,3304.9,3303.1,0.13181834]
[1768657339961,0.96157433,3304.8,3303.1,0.13181834]
[1768657340266,0.14235683,3304.9,3303.1,0.13181834]
[1768657340462,0.96148649,3304.8,3303.1,0.13181834]
[1768657340664,0.14235683,3304.9,3303.1,0.13181834]
[1768657340859,0.96148655,3304.8,3303.1,0.13181834]
[1768657341059,0.14235683,3304.9,3303.1,0.13181834]
[1768657341262,0.96142377,3304.8,3303.1,0.13181834]
[1768657341559,0.14235683,3304.9,3303.1,0.13181834]
[1768657341760,0.96141573,3304.8,3303.1,0.13181834]
[1768657341961,0.14235683,3304.9,3303.1,0.13181834]
[1768657342161,0.96136127,3304.8,3303.1,0.13181834]
[1768657342465,0.14235683,3304.9,3303.1,0.13181834]
[1768657342664,0.96135363,3304.8,3303.1,0.13181834]
[1768657342864,0.14235683,3304.9,3303.1,0.13181834]
[1768657343064,0.96135266,3304.8,3303.1,0.13181834]
[1768657343264,0.14235683,3304.9,3303.1,0.13181834]
[1768657343459,0.96130284,3304.8,3303.1,0.13181834]
[1768657343663,0.14235683,3304.9,3303.1,0.13181834]
[1768657343864,0.96130278,3304.8,3303.1,0.13181834]
[1768657344063,0.14235683,3304.9,3303.1,0.13181834]
[1768657344265,0.96126841,3304.8,3303.1,0.13181834]
[1768657344563,0.14235683,3304.9,3303.1,0.13181834]
[1768657344764,0.9612623,3304.8,3303.1,0.13181834]
[1768657344969,0.14235683,3304.9,3303.1,0.13181834]
[1768657345169,0.96126236,3304.8,3303.1,0.13181834]
[1768657345374,0.14235683,3304.9,3303.1,0.13181834]
[1768657345570,0.96123042,3304.8,3303.1,0.13181834]
[1768657345762,0.14235683,3304.9,3303.1,0.13181834]
[1768657345963,0.96123069,3304.8,3303.1,0.13181834]
[1768657346169,0.14235683,3304.9,3303.1,0.13181834]
[1768657346371,0.96120594,3304.8,3303.1,0.13181834]
[1768657346668,0.14235683,3304.9,3303.1,0.13181834]
[1768657346869,0.96120593,3304.8,3303.1,0.13181834]
[1768657347071,0.14235683,3304.9,3303.1,0.13181834]
[1768657347271,0.96118999,3304.8,3303.1,0.13181834]
[1768657347477,0.14235683,3304.9,3303.1,0.13181834]
[1768657347679,0.96118761,3304.8,3303.1,0.13181834]
[1768657347972,0.14235683,3304.9,3303.1,0.13181834]
[1768657348176,0.96118754,3304.8,3303.1,0.13181834]
[1768657348375,0.14235683,3304.9,3303.1,0.13181834]
[1768657348577,0.96117433,3304.8,3303.1,0.13181834]
[1768657348879,0.14235683,3304.9,3303.1,0.13181834]
[1768657349068,0.96117424,3304.8,3303.1,0.13181834]
[1768657349362,0.14235683,3304.9,3303.1,0.13181834]
[1768657349563,0.96117438,3304.8,3303.1,0.13181834]
[1768657349771,0.14235683,3304.9,3303.1,0.13181834]
[1768657349972,0.96117176,3304.8,3303.1,0.13181834]
[1768657350271,0.14235683,3304.9,3303.1,0.13181834]
[1768657350473,0.96116982,3304.8,3303.1,0.13181834]
[1768657350777,0.14235683,3304.9,3303.1,0.13181834]
[1768657350969,0.96118642,3304.8,3303.1,0.13181834]
[1768657351164,0.14235683,3304.9,3303.3,0.14149373]
[1768657351370,0.14235683,3304.9,3303.4,5.18449373]
[1768657355278,0.14235683,3304.9,3303.8,0.97764563]
[1768657362186,0.14359648,3305.7,3304.6,0.97764563]
[1768657362372,0.97764563,3305.6,3303.9,0.29225877]
[1768657362577,0.97764563,3305.6,3304.1,0.97764563]
[1768657363388,0.97764563,3305.5,3304.1,0.97998681]
[1768657368178,0.97764563,3305.5,3304.1,0.00234118]
[1768657368378,0.97764563,3305.3,3304.1,0.00234118]
[1768657370188,0.14577518,3305.6,3304.1,0.00234118]
[1768657370384,0.97764563,3305.3,3304.1,0.00234118]
[1768657375385,0.97764563,3305.3,3304.2,5.033]
[1768657376591,0.97764563,3305.5,3304.2,5.033]
[1768657376790,0.97764563,3305.5,3304.2,6.01064563]
[1768657387007,0.14577518,3305.6,3304.2,6.01064563]
[1768657387395,1.12342081,3305.6,3304.2,6.01064563]
[1768657389595,1.12342081,3305.6,3304.2,5.033]
[1768657389899,1.12342081,3305.6,3304.3,0.97764563]
[1768657391787,0.14577518,3305.6,3304.3,0.97764563]
[1768657392903,0.97764563,3305.5,3304.2,5.033]
[1768657402214,0.14577518,3305.6,3304.2,5.033]
[1768657402416,1.12342081,3305.6,3304.2,6.01064563]
[1768657408219,1.12342081,3305.6,3304.2,6.15387011]
[1768657413819,0.14577518,3305.6,3304.2,6.15387011]
[1768657414022,1.12342081,3305.6,3304.2,6.15387011]
[1768657414223,1.12342081,3305.6,3304.2,5.17622448]
[1768657414418,1.12342081,3305.6,3304.2,6.15387011]
[1768657417330,0.14577518,3305.6,3304.2,5.17622448]
[1768657420634,0.0021787,3305.6,3304.3,0.14110511]
[1768657425341,0.140163,3306.4,3304.5,0.14110511]
[1768657425535,1.36294851,3306.3,3304.5,0.14110511]
[1768657425734,1.09810304,3306.2,3304.5,0.14110511]
[1768657426034,0.140163,3306.2,3304.5,0.14110511]
[1768657426443,0.14288841,3306.2,3304.5,0.14110511]
[1768657427134,0.00272541,3306.2,3304.5,0.14110511]
[1768657428039,0.00272541,3306.2,3304.7,0.14110511]
[1768657436439,0.00272541,3306.2,3304.9,0.14102161]
[1768657441144,0.97744674,3306.1,3304.8,40.8]
[1768657441350,1.11237374,3306.1,3304.8,40.8]
[1768657441546,0.134927,3306.0,3304.6,0.15135]
[1768657442149,0.134927,3306.0,3304.6,40.95135]
[1768657442348,0.134927,3306.0,3304.6,0.15135]
[1768657442738,0.134927,3306.0,3304.1,0.14336279]
[1768657442943,0.134927,3306.0,3304.2,40.8]
[1768657444339,0.134927,3306.0,3304.2,40.94102161]
[1768657445470,0.134927,3306.0,3304.3,0.14102161]
[1768657446243,0.00272541,3306.2,3304.5,0.14102161]
[1768657448550,0.00272541,3306.2,3304.6,40.8]
[1768657448741,0.13765241,3306.2,3304.6,40.8]
[1768657452351,0.13765241,3306.2,3304.6,40.94102161]
[1768657452548,0.00272541,3306.2,3304.7,0.14102161]
[1768657452755,0.00272541,3306.2,3304.8,0.14102161]
[1768657461360,0.00272541,3306.2,3304.6,45.85]
[1768657461361,0.13765241,3306.2,3304.6,45.85]
[1768657462160,0.13765241,3306.2,3304.6,45.98351633]
[1768657465160,0.13765241,3306.2,3304.6,40.93351633]
[1768657465360,0.13765241,3306.2,3304.7,5.056]
[1768657466872,0.13765241,3306.2,3304.6,45.99051633]
[1768657467167,0.13765241,3306.2,3304.6,45.857]
[1768657471776,1.11509915,3306.2,3304.6,40.8]
[1768657471970,0.13672241,3306.1,3304.6,45.864]
[1768657472176,0.13672241,3306.1,3304.6,5.064]
[1768657473778,0.98017215,3306.2,3304.5,40.8]
[1768657473779,0.13141335,3305.9,3304.5,40.8]
[1768657474074,0.13141335,3305.9,3304.4,5.21436]
[1768657474473,0.13141335,3305.9,3304.4,0.15136]
[1768657474775,0.13141335,3305.9,3304.4,40.95136]
[1768657474978,0.13141335,3305.9,3304.4,40.8]
[1768657477491,0.97750555,3305.5,3304.4,40.8]
[1768657478091,0.97750555,3305.5,3304.3,1.687]
[1768657478491,0.97750555,3305.5,3304.3,42.487]
[1768657478691,0.97750555,3305.5,3304.2,5.19651633]
[1768657479094,0.97750555,3305.5,3304.2,45.99651633]
[1768657484093,0.13141335,3305.9,3304.2,45.99651633]
[1768657484299,0.97750555,3305.6,3304.2,45.99651633]
[1768657489102,0.13141335,3305.9,3304.2,45.99651633]
[1768657489303,0.97750555,3305.6,3304.2,45.99651633]
[1768657494208,0.97750555,3305.4,3304.2,45.863]
[1768657495807,0.97750555,3305.4,3304.2,5.063]
[1768657497108,0.97750555,3305.4,3304.1,41.77984673]
[1768657497310,0.97750555,3305.4,3304.2,5.094]
[1768657497899,0.97750555,3305.2,3304.2,5.094]
[1768657499006,0.13260796,3305.6,3304.2,5.097]
[1768657499202,0.97750555,3305.2,3304.2,5.097]
[1768657501216,0.13260796,3305.6,3304.1,0.00234118]
[1768657501217,0.97750555,3305.0,3304.1,0.00234118]
[1768657504814,0.97750555,3305.2,3304.1,0.00234118]
[1768657511616,0.97750555,3305.4,3304.1,0.00234118]
[1768657515025,1.11011351,3305.4,3304.1,0.00234118]
[1768657515925,0.13260796,3305.4,3304.1,0.00234118]
[1768657516313,1.11011351,3305.4,3304.1,0.00234118]
[1768657521926,0.13260796,3305.4,3304.1,0.00234118]
[1768657522128,0.97750555,3305.3,3304.1,0.00234118]
[1768657522525,0.13260796,3305.4,3304.1,0.00234118]
[1768657522928,0.13260796,3305.4,3304.2,0.97750555]
[1768657528630,0.97750555,3305.7,3304.2,0.97750555]
[1768657528830,1.22511474,3305.6,3304.2,0.97750555]
[1768657529024,0.96786618,3305.5,3304.2,0.97750555]
[1768657529228,0.96786618,3305.4,3304.2,0.97750555]
[1768657529423,0.14253964,3305.6,3304.2,0.97750555]
[1768657529622,0.96808191,3305.5,3304.2,0.97750555]
[1768657529826,0.96808191,3305.4,3304.2,0.97750555]
[1768657530027,0.96808177,3305.3,3304.2,0.97750555]
[1768657530228,0.14253964,3305.6,3304.2,0.97750555]
[1768657530429,1.11062701,3305.5,3304.2,0.97750555]
[1768657530618,1.11062701,3305.5,3304.1,0.97984673]
[1768657530619,0.96808737,3305.4,3304.1,0.97984673]
[1768657530829,0.96808737,3305.3,3304.1,0.97984673]
[1768657531028,0.14253964,3305.5,3304.1,0.97984673]
[1768657531328,0.96808759,3305.4,3304.1,0.97984673]
[1768657531527,0.96808759,3305.3,3304.1,0.97984673]
[1768657531732,0.14253964,3305.4,3304.1,0.00234118]
[1768657531927,2.08825872,3305.3,3304.1,0.00234118]
[1768657532128,1.12004519,3305.3,3304.1,0.00234118]
[1768657539343,0.14253964,3305.3,3304.1,0.00234118]
[1768657539538,0.13517122,3305.2,3304.1,0.00234118]
[1768657594287,1.8383,3305.7,3304.1,0.00234118]
[1768657594489,1.356606,3305.6,3304.1,0.00234118]
[1768657594678,0.13377506,3305.4,3304.1,0.00234118]
[1768657594879,1.09921651,3305.3,3304.1,0.00234118]
[1768657595081,0.13377506,3305.3,3304.1,0.00234118]
[1768657599292,0.13377506,3305.3,3304.1,0.97984674]
[1768657608994,0.13377506,3305.3,3304.1,0.00234118]
[1768657609196,0.13377506,3305.3,3304.1,0.97984674]
[1768657612193,1.26400369,3305.7,3304.3,0.97750556]
[1768657612398,1.22354391,3305.6,3304.3,0.97750556]
[1768657612586,1.22354391,3305.5,3304.3,0.97750556]
[1768657612786,0.96619929,3305.4,3304.3,0.97750556]
[1768657612994,0.96619929,3305.3,3304.3,0.97750556]
[1768657613202,0.13519813,3305.6,3304.3,0.97750556]
[1768657613399,1.22355533,3305.5,3304.3,0.97750556]
[1768657613600,0.96620836,3305.4,3304.3,0.97750556]
[1768657613901,0.96620836,3305.3,3304.3,0.97750556]
[1768657614100,0.13519813,3305.6,3304.3,0.97750556]
[1768657614305,1.22355908,3305.5,3304.3,0.97750556]
[1768657614491,0.96620864,3305.4,3304.3,0.97750556]
[1768657614693,0.96620864,3305.3,3304.3,0.97750556]
[1768657614893,0.13519813,3305.6,3304.3,0.97750556]
[1768657615093,1.22357154,3305.5,3304.3,0.97750556]
[1768657615392,0.9662212,3305.4,3304.3,0.97750556]
[1768657615593,0.9662212,3305.3,3304.3,0.97750556]
[1768657615796,0.13519813,3305.6,3304.3,0.97750556]
[1768657615994,1.22359054,3305.5,3304.3,0.97750556]
[1768657616201,0.96623624,3305.4,3304.3,0.97750556]
[1768657616402,0.96623624,3305.3,3304.3,0.97750556]
[1768657616603,0.13519813,3305.6,3304.3,0.97750556]
[1768657616805,1.22361162,3305.5,3304.3,0.97750556]
[1768657617005,0.96625285,3305.4,3304.3,0.97750556]
[1768657617196,0.96625285,3305.3,3304.3,0.97750556]
[1768657617503,0.13519813,3305.6,3304.3,0.97750556]
[1768657617697,1.22363754,3305.5,3304.3,0.97750556]
[1768657618004,0.96627332,3305.4,3304.3,0.97750556]
[1768657618206,0.96627332,3305.3,3304.3,0.97750556]
[1768657618508,0.13519813,3305.6,3304.3,0.97750556]
[1768657618711,1.22367098,3305.5,3304.3,0.97750556]
[1768657618909,0.96629983,3305.4,3304.3,0.97750556]
[1768657619110,0.96629983,3305.3,3304.3,0.97750556]
[1768657619311,0.13519813,3305.6,3304.3,0.97750556]
[1768657619511,1.22371518,3305.5,3304.3,0.97750556]
[1768657619712,0.96633483,3305.4,3304.3,0.97750556]
[1768657620020,0.96633483,3305.3,3304.3,0.97750556]
[1768657620224,0.13519813,3305.6,3304.3,0.97750556]
[1768657620425,1.22373939,3305.5,3304.3,0.97750556]
[1768657620612,0.96635345,3305.4,3304.3,0.97750556]
[1768657620812,0.96635345,3305.3,3304.3,0.97750556]